fUSD/lending_fUSD_20260630
["ID","MTS","AMOUNT","RATE_DAILY","PERIOD"]
[426753009,1782779467000,-175.74808293,0.000364,2]
[426753004,1782779467000,-275.47,0.00036362,60]
[426752998,1782779467000,-951.96,0.00036329,120]
[426753034,1782779468000,-197758.71638247,0.000365,36]
[426753035,1782779468000,-100000.0,0.000365,30]
[426753029,1782779468000,-2336.0,0.0003647,11]
[426753030,1782779468000,-2336.0,0.00036474,11]
[426753033,1782779468000,-410736.39746454,0.000365,18]
[426753027,1782779468000,-151.0,0.0003647,14]
[426753032,1782779468000,-44664.35839246,0.00036499,20]
[426753031,1782779468000,-254.0,0.00036476,14]
[426753026,1782779468000,-151.0,0.0003647,14]
[426753039,1782779468000,-200.0,0.000365,120]
[426753028,1782779468000,-155.04188056,0.0003647,14]
[426753040,1782779468000,-337.3085692,0.000365,120]
[426753045,1782779468000,-10000.0,0.000365,120]
[426753037,1782779468000,-1256881.72826889,0.000365,120]
[426753036,1782779468000,-199.75,0.000365,14]
[426753050,1782779468000,-414.63932401,0.000365,30]
[426753051,1782779468000,-2812.50546488,0.000365,30]
[426753047,1782779468000,-498.589728,0.00035616,30]
[426753048,1782779468000,-53363.5244658,0.000365,30]
[426753046,1782779468000,-242199.32437713,0.000365,30]
[426753049,1782779468000,-1238.43667252,0.000365,30]
[426753038,1782779468000,-51348.31,0.000365,30]
[426753044,1782779468000,-800.0,0.000365,7]
[426753052,1782779468000,-1702.68567847,0.000365,30]
[426753043,1782779468000,-800.0,0.000365,7]
[426753041,1782779468000,-864130.75111917,0.000365,30]
[426753042,1782779468000,-800.0,0.000365,7]
[426753058,1782779469000,-117.34044823,0.00036,30]
[426753053,1782779469000,-300.0,0.00033516,2]
[426753054,1782779469000,-106.5945204,0.00035616,30]
[426753057,1782779469000,-381.24927977,0.00036,30]
[426753056,1782779469000,-206.676237,0.00036,30]
[426753059,1782779469000,-585.16235876,0.000365,30]
[426753055,1782779469000,-86.1975706,0.00035616,30]
[426753061,1782779469000,-163.0,0.00023,2]
[426753064,1782779469000,-718.37735,0.00036,30]
[426753063,1782779469000,-192.792091,0.00036,30]
[426753066,1782779469000,-1046.88928713,0.000365,30]
[426753065,1782779469000,-2407.0641841,0.000365,30]
[426753062,1782779469000,-718.37735,0.00034358,7]
[426753067,1782779469000,-497.7120697,0.000365,30]
[426753060,1782779469000,-745.76877668,0.000365,30]
[426753075,1782779470000,-335.96757487,0.000192,2]
[426753069,1782779470000,-282.4852324,0.00033516,2]
[426753068,1782779470000,-17.5147676,0.00033516,2]
[426753070,1782779470000,-151.0,0.00035616,30]
[426753071,1782779470000,-37989.3945859,0.000365,30]
[426753072,1782779470000,-661.03999474,0.000365,30]
[426753073,1782779470000,-6179.48335827,0.000365,30]
[426753074,1782779470000,-335.96757487,0.00019,2]
[426753083,1782779470000,-206.676237,0.00035616,30]
[426753077,1782779470000,-335.96757487,0.000196,2]
[426753078,1782779470000,-335.96757487,0.000198,2]
[426753080,1782779470000,-180.59292995,0.00025,2]
[426753081,1782779470000,-446.09705538,0.00033516,2]
[426753076,1782779470000,-335.96757487,0.000194,2]
[426753082,1782779470000,-718.37735,0.00034358,7]
[426753079,1782779470000,-163.0,0.00024,2]
[426753084,1782779470000,-367.00055332,0.00035616,30]
[426753087,1782779471000,705.23349483,0.00011928,7]
[426753088,1782779471000,705.23349483,0.00012269,7]
[426753086,1782779471000,705.23349483,0.00011587,7]
[426753085,1782779471000,705.23349483,0.0001136,7]
[426753089,1782779472000,1181.64087,7.945e-05,2]
[426753091,1782779491000,200.0,0.000118,4]
[426753092,1782779493000,500.0,0.000119,4]
[426753098,1782779555000,-150.0,0.00011277,2]
[426753099,1782779555000,-199.50919739,0.00011426,2]
[426753097,1782779555000,-168.499831,0.00011277,2]
[426753102,1782779561000,200.0,0.000116,4]
[426753103,1782779563000,500.0,0.000117,4]
[426753104,1782779565000,700.0,0.000118,4]
[426753105,1782779567000,1000.0,0.000119,4]
[426753107,1782779576000,-160.0,0.00011589,2]
[426753109,1782779576000,-3953.99097161,0.00011589,2]
[426753108,1782779576000,-160.0,0.00011589,2]
[426753111,1782779622000,600.0,0.000116,4]
[426753113,1782779623000,-131.788,0.00011394,2]
[426753112,1782779623000,-3171.212,0.00011394,2]
[426753114,1782779624000,1200.0,0.000117,4]
[426753116,1782779626000,1800.0,0.000118,4]
[426753119,1782779628000,2500.0,0.000119,4]
[426753124,1782779633000,150.0,0.00011589,7]
[426753125,1782779634000,150.0,0.00011821,7]
[426753127,1782779635000,174.46509048,0.0001136,7]
[426753126,1782779635000,150.0,0.00012168,7]
[426753128,1782779636000,174.46509048,0.00011587,7]
[426753129,1782779637000,174.46509048,0.00011928,7]
[426753131,1782779637000,174.46509048,0.00012269,7]
[426753130,1782779637000,1829.82145837,0.0001136,7]
[426753133,1782779638000,1829.82145837,0.00011928,7]
[426753132,1782779638000,1829.82145837,0.00011587,7]
[426753134,1782779639000,1829.82145837,0.00012269,7]
[426753144,1782779693000,-453.51305041,0.00011526,2]
[426753143,1782779693000,-56.502,0.00011394,2]
[426753149,1782779693000,-222.09095558,0.00011588,2]
[426753147,1782779693000,-500.0,0.00011588,2]
[426753148,1782779693000,-500.0,0.00011588,2]
[426753146,1782779693000,-500.0,0.00011588,2]
[426753150,1782779693000,-500.0,0.00011588,2]
[426753145,1782779693000,-500.0,0.00011588,2]
[426753153,1782779693000,-150.0,0.00011625,2]
[426753152,1782779693000,-216.58458871,0.00011601,2]
[426753156,1782779693000,-596.01314139,0.00011625,2]
[426753154,1782779693000,-500.0,0.00011625,2]
[426753155,1782779693000,-500.0,0.00011625,2]
[426753157,1782779693000,-390.29315671,0.00011625,2]
[426753158,1782779693000,-500.0,0.00011625,2]
[426753159,1782779693000,-282.20290938,0.00011625,2]
[426753151,1782779693000,-1628.00902839,0.00011589,2]
[426753160,1782779694000,-476.12116943,0.00011625,2]
[426753164,1782779772000,-150.0,0.00011525,2]
[426753163,1782779772000,-250.0,0.00011507,2]
[426753165,1782779772000,-1407.27966961,0.00011526,2]
[426753162,1782779772000,-161.72033039,0.00011488,2]
[426753177,1782779858000,-1933.31948827,0.00011526,2]
[426753179,1782779871000,-287.0,0.00011526,2]
[426753180,1782779871000,-1933.31948827,0.00011526,2]
[426753181,1782779872000,-287.0,0.00011526,2]
[426753193,1782780027000,-500.0,0.00011525,2]
[426753194,1782780027000,-25.62715186,0.00011525,2]
[426753184,1782780027000,-500.0,0.00011525,2]
[426753185,1782780027000,-500.0,0.00011525,2]
[426753187,1782780027000,-500.0,0.00011525,2]
[426753186,1782780027000,-324.37284814,0.00011525,2]
[426753183,1782780027000,-150.0,0.00011525,2]
[426753188,1782780027000,-500.0,0.00011525,2]
[426753191,1782780027000,-500.0,0.00011525,2]
[426753192,1782780027000,-500.0,0.00011525,2]
[426753190,1782780027000,-500.0,0.00011525,2]
[426753189,1782780027000,-500.0,0.00011525,2]
[426753204,1782780030000,-500.0,0.00011525,2]
[426753209,1782780030000,-500.0,0.00011525,2]
[426753208,1782780030000,-500.0,0.00011525,2]
[426753207,1782780030000,-415.0618912,0.00011525,2]
[426753206,1782780030000,-474.37284814,0.00011525,2]
[426753205,1782780030000,-25.62715186,0.00011525,2]
[426753203,1782780030000,-500.0,0.00011525,2]
[426753197,1782780030000,-500.0,0.00011525,2]
[426753201,1782780030000,-500.0,0.00011525,2]
[426753200,1782780030000,-500.0,0.00011525,2]
[426753199,1782780030000,-500.0,0.00011525,2]
[426753198,1782780030000,-500.0,0.00011525,2]
[426753210,1782780030000,-500.0,0.00011525,2]
[426753196,1782780030000,-500.0,0.00011525,2]
[426753202,1782780030000,-500.0,0.00011525,2]
[426753195,1782780030000,-474.37284814,0.00011525,2]
[426753212,1782780030000,-197.54203657,0.00011525,2]
[426753213,1782780030000,-500.0,0.00011525,2]
[426753226,1782780030000,-500.0,0.00011525,2]
[426753227,1782780030000,-642.62002531,0.00011525,2]
[426753211,1782780030000,-500.0,0.00011525,2]
[426753225,1782780030000,-189.60352373,0.00011525,2]
[426753222,1782780030000,-178.35802278,0.00011525,2]
[426753221,1782780030000,-500.0,0.00011525,2]
[426753224,1782780030000,-500.0,0.00011525,2]
[426753228,1782780030000,-402.44165227,0.00011525,2]
[426753218,1782780030000,-500.0,0.00011525,2]
[426753220,1782780030000,-500.0,0.00011525,2]
[426753219,1782780030000,-500.0,0.00011525,2]
[426753217,1782780030000,-86.97677591,0.00011525,2]
[426753215,1782780030000,-500.0,0.00011525,2]
[426753216,1782780030000,-413.02322409,0.00011525,2]
[426753214,1782780030000,-500.0,0.00011525,2]
[426753223,1782780030000,-500.0,0.00011525,2]
[426753229,1782780031000,-240.17837304,0.00011525,2]
[426753230,1782780031000,-245.38758367,0.00011525,2]
[426753233,1782780031000,-3598.60880828,0.00011526,2]
[426753232,1782780031000,-642.62002531,0.00011525,2]
[426753234,1782780031000,-5000.0,0.00011526,2]
[426753235,1782780031000,-5000.0,0.00011526,2]
[426753231,1782780031000,-273.2052097,0.00011525,2]
[426753238,1782780032000,-5000.0,0.00011526,2]
[426753237,1782780032000,-5000.0,0.00011526,2]
[426753236,1782780032000,-5000.0,0.00011526,2]
[426753239,1782780033000,-905.73337569,0.00011526,2]
[426753242,1782780033000,-5000.0,0.00011526,2]
[426753241,1782780033000,-5000.0,0.00011526,2]
[426753240,1782780033000,-4094.26662431,0.00011526,2]
[426753244,1782780034000,-1816.56816332,0.00011526,2]
[426753246,1782780034000,-213.69073356,0.00011526,2]
[426753245,1782780034000,-2969.74110312,0.00011526,2]
[426753243,1782780034000,-5000.0,0.00011526,2]
[426753248,1782780035000,-150.0,0.00011532,2]
[426753247,1782780035000,-90.30926644,0.00011526,2]
[426753250,1782780035000,-250.0,0.00011571,2]
[426753251,1782780035000,-160.0,0.00011573,2]
[426753249,1782780035000,-216.58458871,0.00011562,2]
[426753252,1782780056000,-161.72033038,0.00011526,2]
[426753254,1782780063000,-3799.34226103,0.00011626,2]
[426753253,1782780063000,-172.04360859,0.00011616,2]
[426753257,1782780072000,-4447.65796638,0.00011626,2]
[426753256,1782780072000,-250.0,0.00011576,2]
[426753255,1782780072000,-302.34203362,0.00011526,2]
[426753260,1782780075000,-5000.0,0.00011626,2]
[426753259,1782780075000,-5000.0,0.00011626,2]
[426753258,1782780075000,-5000.0,0.00011626,2]
[426753263,1782780076000,-5000.0,0.00011626,2]
[426753262,1782780076000,-5000.0,0.00011626,2]
[426753261,1782780076000,-5000.0,0.00011626,2]
[426753264,1782780077000,-5000.0,0.00011626,2]
[426753266,1782780077000,-5000.0,0.00011626,2]
[426753265,1782780077000,-5000.0,0.00011626,2]
[426753269,1782780078000,-5000.0,0.00011626,2]
[426753268,1782780078000,-5000.0,0.00011626,2]
[426753267,1782780078000,-5000.0,0.00011626,2]
[426753272,1782780079000,-5000.0,0.00011626,2]
[426753271,1782780079000,-5000.0,0.00011626,2]
[426753270,1782780079000,-5000.0,0.00011626,2]
[426753275,1782780080000,-5000.0,0.00011626,2]
[426753274,1782780080000,-5000.0,0.00011626,2]
[426753273,1782780080000,-5000.0,0.00011626,2]
[426753276,1782780081000,-5000.0,0.00011626,2]
[426753277,1782780081000,-5000.0,0.00011626,2]
[426753278,1782780081000,-5000.0,0.00011626,2]
[426753281,1782780082000,-5000.0,0.00011626,2]
[426753280,1782780082000,-5000.0,0.00011626,2]
[426753279,1782780082000,-5000.0,0.00011626,2]
[426753282,1782780083000,-500.0,0.00011524,2]
[426753284,1782780083000,-5000.0,0.00011626,2]
[426753283,1782780083000,-4500.0,0.00011626,2]
[426753287,1782780084000,-5000.0,0.00011626,2]
[426753286,1782780084000,-5000.0,0.00011626,2]
[426753285,1782780084000,-5000.0,0.00011626,2]
[426753290,1782780085000,-5000.0,0.00011626,2]
[426753289,1782780085000,-5000.0,0.00011626,2]
[426753288,1782780085000,-5000.0,0.00011626,2]
[426753292,1782780086000,-5000.0,0.00011626,2]
[426753291,1782780086000,-5000.0,0.00011626,2]
[426753295,1782780087000,-5000.0,0.00011626,2]
[426753294,1782780087000,-5000.0,0.00011626,2]
[426753293,1782780087000,-5000.0,0.00011626,2]
[426753296,1782780088000,-5000.0,0.00011626,2]
[426753298,1782780088000,-5000.0,0.00011626,2]
[426753297,1782780088000,-5000.0,0.00011626,2]
[426753300,1782780089000,-5000.0,0.00011626,2]
[426753299,1782780089000,-5000.0,0.00011626,2]
[426753301,1782780089000,-5000.0,0.00011626,2]
[426753303,1782780090000,-5000.0,0.00011626,2]
[426753302,1782780090000,-5000.0,0.00011626,2]
[426753306,1782780091000,-5000.0,0.00011626,2]
[426753305,1782780091000,-5000.0,0.00011626,2]
[426753304,1782780091000,-5000.0,0.00011626,2]
[426753309,1782780092000,-5000.0,0.00011626,2]
[426753308,1782780092000,-5000.0,0.00011626,2]
[426753307,1782780092000,-5000.0,0.00011626,2]
[426753310,1782780093000,-5000.0,0.00011626,2]
[426753312,1782780093000,-5000.0,0.00011626,2]
[426753311,1782780093000,-5000.0,0.00011626,2]
[426753313,1782780094000,-5000.0,0.00011626,2]
[426753314,1782780094000,-5000.0,0.00011626,2]
[426753316,1782780095000,-5000.0,0.00011626,2]
[426753315,1782780095000,-5000.0,0.00011626,2]
[426753318,1782780097000,-5000.0,0.00011626,2]
[426753317,1782780097000,-5000.0,0.00011626,2]
[426753321,1782780098000,-5000.0,0.00011626,2]
[426753320,1782780098000,-5000.0,0.00011626,2]
[426753319,1782780098000,-5000.0,0.00011626,2]
[426753324,1782780099000,-5000.0,0.00011626,2]
[426753323,1782780099000,-5000.0,0.00011626,2]
[426753322,1782780099000,-5000.0,0.00011626,2]
[426753325,1782780100000,-5000.0,0.00011626,2]
[426753327,1782780100000,-5000.0,0.00011626,2]
[426753326,1782780100000,-5000.0,0.00011626,2]
[426753329,1782780101000,-5000.0,0.00011626,2]
[426753328,1782780101000,-5000.0,0.00011626,2]
[426753332,1782780102000,-5000.0,0.00011626,2]
[426753331,1782780102000,-5000.0,0.00011626,2]
[426753330,1782780102000,-5000.0,0.00011626,2]
[426753335,1782780103000,-5000.0,0.00011626,2]
[426753334,1782780103000,-5000.0,0.00011626,2]
[426753333,1782780103000,-5000.0,0.00011626,2]
[426753336,1782780104000,-5000.0,0.00011626,2]
[426753337,1782780104000,-5000.0,0.00011626,2]
[426753338,1782780105000,-5000.0,0.00011626,2]
[426753340,1782780105000,-5000.0,0.00011626,2]
[426753339,1782780105000,-5000.0,0.00011626,2]
[426753343,1782780106000,-5000.0,0.00011626,2]
[426753342,1782780106000,-5000.0,0.00011626,2]
[426753341,1782780106000,-5000.0,0.00011626,2]
[426753345,1782780107000,-5000.0,0.00011626,2]
[426753344,1782780107000,-5000.0,0.00011626,2]
[426753348,1782780108000,-5000.0,0.00011626,2]
[426753347,1782780108000,-5000.0,0.00011626,2]
[426753346,1782780108000,-5000.0,0.00011626,2]
[426753349,1782780109000,-5000.0,0.00011626,2]
[426753350,1782780109000,-5000.0,0.00011626,2]
[426753351,1782780109000,-5000.0,0.00011626,2]
[426753353,1782780110000,-5000.0,0.00011626,2]
[426753352,1782780110000,-5000.0,0.00011626,2]
[426753354,1782780111000,-5000.0,0.00011626,2]
[426753356,1782780112000,-5000.0,0.00011626,2]
[426753355,1782780112000,-5000.0,0.00011626,2]
[426753357,1782780113000,-5000.0,0.00011626,2]
[426753358,1782780119000,-4900.0,0.00011626,2]
[426753359,1782780175000,189.17762271,0.00011756,7]
[426753360,1782780188000,150.0,7.945e-05,2]
[426753361,1782780188000,685.245623,7.945e-05,2]
[426753362,1782780206000,-922.98509971,0.00010668,2]
[426753363,1782780207000,-180.20935432,0.00010668,2]
[426753364,1782780213000,160.0,0.00010668,2]
[426753365,1782780224000,-196.721778,0.00010668,2]
[426753366,1782780238000,150.0,0.00010348,2]
[426753367,1782780260000,-162.52879579,0.00010747,2]
[426753368,1782780266000,-196.721778,0.00010747,2]
[426753374,1782780391000,-8042.69165748,0.00010672,2]
[426753373,1782780391000,-150.0,0.00010425,2]
[426753372,1782780391000,-1641.64002057,0.00010133,2]
[426753371,1782780391000,-150.0,0.00010112,2]
[426753375,1782780420000,1079.62205896,0.000125,3]
[426753376,1782780432000,752.00723334,0.000116,4]
[426753377,1782780432000,147.99276666,0.000116,4]
[426753378,1782780434000,1900.0,0.000117,4]
[426753379,1782780436000,2900.0,0.000118,4]
[426753380,1782780438000,3800.0,0.000119,4]
[426753382,1782780495000,-211.26432973,0.00010289,2]
[426753381,1782780495000,-189.555102,0.00010289,2]
[426753383,1782780495000,-150.0,0.00010302,2]
[426753385,1782780495000,-150.0,0.00010341,2]
[426753384,1782780495000,-250.0,0.00010315,2]
[426753388,1782780495000,-238.0,0.00010617,2]
[426753387,1782780495000,-238.0,0.00010513,2]
[426753386,1782780495000,-871.91,0.0001041,2]
[426753389,1782780495000,-188.571065,0.00010661,2]
[426753390,1782780495000,-177.59409406,0.00010661,2]
[426753396,1782780495000,-1529.24473597,0.00010826,2]
[426753392,1782780495000,-5306.64846981,0.00010726,2]
[426753401,1782780495000,-15133.35423822,0.00011099,2]
[426753391,1782780495000,-238.0,0.00010721,2]
[426753400,1782780495000,-238.0,0.00011034,2]
[426753398,1782780495000,-160.0,0.0001085,2]
[426753399,1782780495000,-238.0,0.0001093,2]
[426753395,1782780495000,-196.721778,0.00010826,2]
[426753394,1782780495000,-300.0,0.00010825,2]
[426753393,1782780495000,-238.0,0.00010825,2]
[426753397,1782780495000,-701.67331578,0.00010833,2]
[426753402,1782780501000,150.0,9.98e-05,2]
[426753409,1782780543000,-500.0,0.00010725,2]
[426753403,1782780543000,-1186.263185,0.00010279,2]
[426753404,1782780543000,-419.07870563,0.00010671,2]
[426753406,1782780543000,-201.58782147,0.00010671,2]
[426753405,1782780543000,-500.0,0.00010671,2]
[426753408,1782780543000,-269.66297515,0.00010725,2]
[426753407,1782780543000,-381.35,0.00010671,2]
[426753411,1782780543000,-286.91241891,0.00010725,2]
[426753410,1782780543000,-213.08758109,0.00010725,2]
[426753413,1782780543000,-150.0,0.00010959,2]
[426753412,1782780543000,-360.12858537,0.00010725,2]
[426753414,1782780543000,-150.0,0.00010959,2]
[426753416,1782780543000,-462.93612124,0.00011099,2]
[426753415,1782780543000,-2723.98926406,0.00011099,2]
[426753418,1782780557000,-1851.33,0.00010679,2]
[426753419,1782780557000,-653.84894467,0.00011099,2]
[426753421,1782780557000,-238.0,0.00011138,2]
[426753420,1782780557000,-701.67331578,0.00011099,2]
[426753422,1782780557000,-150.0,0.00011233,2]
[426753426,1782780557000,-238.0,0.00011346,2]
[426753423,1782780557000,-238.0,0.00011242,2]
[426753427,1782780557000,-701.67331578,0.00011365,2]
[426753424,1782780557000,-150.0,0.00011276,2]
[426753428,1782780557000,-237.09960977,0.0001145,2]
[426753425,1782780557000,-250.0,0.00011318,2]
[426753430,1782780567000,-220.82127986,0.00010671,2]
[426753429,1782780567000,-353.87416603,0.00010671,2]
[426753434,1782780567000,-175.74808293,0.0001147,2]
[426753436,1782780567000,-3624.75287185,0.0001147,2]
[426753431,1782780567000,-9.90039023,0.0001145,2]
[426753432,1782780567000,-507.51541026,0.0001147,2]
[426753435,1782780567000,-2409.27087219,0.0001147,2]
[426753433,1782780567000,-150.0,0.0001147,2]
[426753437,1782780593000,-191.24364679,0.00010725,2]
[426753438,1782780593000,-3784.92421618,0.0001147,2]
[426753439,1782780593000,-3403.34321947,0.0001147,2]
[426753455,1782780632000,-28502.0023009,0.00011526,2]
[426753446,1782780632000,-171.77130857,0.00011469,2]
[426753442,1782780632000,-2000.0,0.00011412,2]
[426753445,1782780632000,-188.76408261,0.00011469,2]
[426753444,1782780632000,-500.0,0.00011469,2]
[426753443,1782780632000,-1528.263563,0.00011412,2]
[426753447,1782780632000,-452.09000976,0.00011469,2]
[426753450,1782780632000,-25285.9818811,0.00011526,2]
[426753456,1782780632000,-28317.35521247,0.00011526,2]
[426753457,1782780632000,-5520.13236877,0.00011526,2]
[426753449,1782780632000,-172.04360859,0.00011516,2]
[426753454,1782780632000,-13860.6055,0.00011526,2]
[426753448,1782780632000,-16605.54467929,0.0001147,2]
[426753452,1782780632000,-1371.614,0.00011526,2]
[426753453,1782780632000,-699.8866,0.00011526,2]
[426753451,1782780632000,-174.998,0.00011526,2]
[426753500,1782780638000,-150.0,0.0001298,7]
[426753499,1782780638000,-150.0,0.0001298,7]
[426753497,1782780638000,-150.0,0.0001298,7]
[426753496,1782780638000,-150.0,0.0001298,7]
[426753505,1782780638000,-150.0,0.0001298,7]
[426753506,1782780638000,-150.0,0.0001298,7]
[426753498,1782780638000,-150.0,0.0001298,7]
[426753495,1782780638000,-150.0,0.0001298,7]
[426753491,1782780638000,-705.23349486,0.00012723,7]
[426753494,1782780638000,-402.28,0.00012901,2]
[426753504,1782780638000,-150.0,0.0001298,7]
[426753507,1782780638000,-150.0,0.0001298,7]
[426753502,1782780638000,-150.0,0.0001298,7]
[426753503,1782780638000,-150.0,0.0001298,7]
[426753509,1782780638000,-150.0,0.0001298,7]
[426753510,1782780638000,-150.0,0.0001298,7]
[426753512,1782780638000,-150.0,0.0001298,7]
[426753516,1782780638000,-281.97995168,0.0001298,7]
[426753515,1782780638000,-150.0,0.0001298,7]
[426753514,1782780638000,-150.0,0.0001298,7]
[426753513,1782780638000,-150.0,0.0001298,7]
[426753518,1782780638000,-402.28,0.00013201,2]
[426753486,1782780638000,-150.0,0.00012516,7]
[426753501,1782780638000,-150.0,0.0001298,7]
[426753490,1782780638000,-402.28,0.00012601,2]
[426753479,1782780638000,-1000.0,0.00011755,2]
[426753488,1782780638000,-193.65732086,0.00012554,2]
[426753511,1782780638000,-150.0,0.0001298,7]
[426753466,1782780638000,-1437660.51011786,0.00011526,2]
[426753467,1782780638000,-9320.5888398,0.0001157,2]
[426753469,1782780638000,-428.38796413,0.00011626,2]
[426753480,1782780638000,-193.0,0.00011898,2]
[426753474,1782780638000,-216.58458871,0.00011706,2]
[426753473,1782780638000,-772.05,0.00011704,2]
[426753478,1782780638000,-160.0,0.00011753,2]
[426753476,1782780638000,-250.0,0.00011738,2]
[426753477,1782780638000,-252.42902503,0.00011747,2]
[426753470,1782780638000,-278.4,0.00011626,2]
[426753471,1782780638000,-3000.0,0.00011626,2]
[426753475,1782780638000,-160.0,0.00011717,2]
[426753468,1782780638000,-1352.46908425,0.00011586,2]
[426753472,1782780638000,-727.83123617,0.00011626,2]
[426753481,1782780638000,-4823.23,0.00011979,2]
[426753482,1782780638000,-402.28,0.00012001,2]
[426753483,1782780638000,-1851.33,0.00012014,2]
[426753493,1782780638000,-1829.82145841,0.00012723,7]
[426753492,1782780638000,-174.4650905,0.00012723,7]
[426753485,1782780638000,-402.28,0.00012301,2]
[426753489,1782780638000,-250.0,0.00012554,2]
[426753484,1782780638000,-163.66,0.0001202,2]
[426753487,1782780638000,-255.0,0.00012537,2]
[426753517,1782780638000,-500.0,0.0001298,2]
[426753585,1782780638000,-488.91218932,0.00013698,2]
[426753530,1782780638000,-500.0,0.00013698,2]
[426753567,1782780638000,-500.0,0.00013698,2]
[426753571,1782780638000,-500.0,0.00013698,2]
[426753565,1782780638000,-500.0,0.00013698,2]
[426753569,1782780638000,-500.0,0.00013698,2]
[426753573,1782780638000,-500.0,0.00013698,2]
[426753575,1782780638000,-500.0,0.00013698,2]
[426753577,1782780638000,-500.0,0.00013698,2]
[426753580,1782780638000,-500.0,0.00013698,2]
[426753578,1782780638000,-500.0,0.00013698,2]
[426753582,1782780638000,-500.0,0.00013698,2]
[426753594,1782780638000,-500.0,0.00013698,2]
[426753589,1782780638000,-500.0,0.00013698,2]
[426753598,1782780638000,-500.0,0.00013698,2]
[426753592,1782780638000,-500.0,0.00013698,2]
[426753587,1782780638000,-500.0,0.00013698,2]
[426753591,1782780638000,-500.0,0.00013698,2]
[426753596,1782780638000,-500.0,0.00013698,2]
[426753602,1782780638000,-500.0,0.00013698,2]
[426753600,1782780638000,-500.0,0.00013698,2]
[426753604,1782780638000,-500.0,0.00013698,2]
[426753608,1782780638000,-500.0,0.00013698,2]
[426753606,1782780638000,-500.0,0.00013698,2]
[426753508,1782780638000,-150.0,0.0001298,7]
[426753561,1782780638000,-500.0,0.00013698,2]
[426753563,1782780638000,-500.0,0.00013698,2]
[426753583,1782780638000,-500.0,0.00013698,2]
[426753554,1782780638000,-500.0,0.00013698,2]
[426753519,1782780638000,-166.66,0.00013218,2]
[426753559,1782780638000,-500.0,0.00013698,2]
[426753520,1782780638000,-500.0,0.00013254,2]
[426753521,1782780638000,-18974.12856813,0.00013266,2]
[426753524,1782780638000,-500.0,0.00013528,2]
[426753527,1782780638000,-500.0,0.00013698,2]
[426753529,1782780638000,-500.0,0.00013698,2]
[426753526,1782780638000,-500.0,0.00013698,2]
[426753523,1782780638000,-166.66,0.00013497,2]
[426753522,1782780638000,-1851.33,0.00013349,2]
[426753528,1782780638000,-500.0,0.00013698,2]
[426753532,1782780638000,-500.0,0.00013698,2]
[426753534,1782780638000,-500.0,0.00013698,2]
[426753525,1782780638000,-500.0,0.00013698,2]
[426753543,1782780638000,-500.0,0.00013698,2]
[426753536,1782780638000,-500.0,0.00013698,2]
[426753531,1782780638000,-500.0,0.00013698,2]
[426753533,1782780638000,-500.0,0.00013698,2]
[426753538,1782780638000,-500.0,0.00013698,2]
[426753541,1782780638000,-500.0,0.00013698,2]
[426753552,1782780638000,-500.0,0.00013698,2]
[426753547,1782780638000,-500.0,0.00013698,2]
[426753549,1782780638000,-500.0,0.00013698,2]
[426753545,1782780638000,-500.0,0.00013698,2]
[426753556,1782780638000,-500.0,0.00013698,2]
[426753683,1782780639000,-161.53,0.00013699,2]
[426753682,1782780639000,-193.84,0.00013699,2]